bitfinex/quotes_SOLUSD_20230101
["timestamp","ask_amount","ask_price","bid_price","bid_amount"]
[1672552228286,75.18095592,9.7924,9.7856,40.0]
[1672552228496,75.18095592,9.7924,9.7857,17.0]
[1672552228726,75.18095592,9.7924,9.7858,305.8]
[1672552228931,75.18095592,9.7924,9.7859,40.0]
[1672552230388,75.62949373,9.7977,9.7861,305.8]
[1672552230698,40.0,9.8031,9.7864,40.0]
[1672552230931,40.0,9.8031,9.7867,40.0]
[1672552231134,76.59,9.803,9.787,40.0]
[1672552231348,76.59,9.803,9.7872,40.0]
[1672552231349,40.0,9.8029,9.7872,40.0]
[1672552231574,76.6,9.8028,9.7873,36.73]
[1672552231881,76.6,9.8028,9.7875,40.0]
[1672552232078,40.0,9.8027,9.7878,40.0]
[1672552232289,76.6,9.8026,9.788,40.0]
[1672552232493,40.0,9.8025,9.7882,305.8]
[1672552232705,76.6,9.8024,9.7884,305.8]
[1672552232915,76.6,9.8024,9.7883,93.43]
[1672552232916,76.6,9.8028,9.7886,345.8]
[1672552233130,40.0,9.8029,9.7889,40.0]
[1672552233451,76.6,9.8028,9.7891,40.0]
[1672552233663,76.6,9.8028,9.7893,40.0]
[1672552233874,40.0,9.8043,9.7895,40.0]
[1672552234074,76.58,9.8042,9.7896,16.43]
[1672552234401,76.58,9.8042,9.7898,40.0]
[1672552234718,20.0,9.8041,9.79,40.0]
[1672552234927,20.0,9.8041,9.7901,33.43]
[1672552234928,40.0,9.8039,9.7901,33.43]
[1672552235148,40.0,9.8037,9.7903,40.0]
[1672552235343,76.59,9.8036,9.7905,40.0]
[1672552235543,40.0,9.8035,9.7906,16.4]
[1672552235761,76.59,9.8034,9.7907,362.8]
[1672552235972,40.0,9.8033,9.7907,445.14121269]
[1672552236284,40.0,9.8031,9.791,40.0]
[1672552236492,40.0,9.8029,9.791,40.0]
[1672552236703,40.0,9.8031,9.7912,305.8]
[1672552236704,76.6,9.8028,9.7912,305.8]
[1672552236924,40.0,9.8029,9.7913,40.0]
[1672552237133,24.3167,9.8027,9.7914,305.8]
[1672552237335,76.6,9.8026,9.7915,40.0]
[1672552237543,40.0,9.8025,9.7917,40.0]
[1672552237764,76.6,9.8024,9.7917,40.0]
[1672552237957,76.6,9.8026,9.7917,40.0]
[1672552238171,40.0,9.8025,9.7919,40.0]
[1672552238495,40.0,9.8023,9.7918,463.3638]
[1672552238708,76.6,9.8022,9.7918,463.3638]
[1672552239033,40.0,9.8021,9.7921,40.0]
[1672552239226,76.6,9.802,9.7921,40.0]
[1672552239551,40.0,9.8025,9.7923,305.8]
[1672552239765,40.0,9.8023,9.7923,305.8]
[1672552239953,40.0,9.8021,9.7925,305.8]
[1672552240166,76.6,9.802,9.7925,305.8]
[1672552240705,40.0,9.8025,9.7927,305.8]
[1672552240907,40.0,9.8023,9.7927,305.8]
[1672552241120,40.0,9.8021,9.7927,305.8]
[1672552241323,76.6,9.802,9.793,40.0]
[1672552241529,40.0,9.8024,9.7932,305.8]
[1672552241746,76.6,9.8023,9.7932,305.8]
[1672552241954,76.6,9.8023,9.7933,40.0]
[1672552242171,76.6,9.8025,9.7935,40.0]
[1672552242904,76.6,9.8025,9.7937,345.8]
[1672552243549,76.6,9.8025,9.794,40.0]
[1672552243950,76.6,9.8025,9.7942,40.0]
[1672552244683,76.6,9.8025,9.7943,23.7573]
[1672552244894,76.6,9.8025,9.7944,40.0]
[1672552245113,76.6,9.8025,9.7945,305.8]
[1672552245323,22.7283,9.8026,9.7947,40.0]
[1672552245547,22.7283,9.8026,9.7948,33.26]
[1672552245738,22.7283,9.8026,9.7949,40.0]
[1672552245948,22.7283,9.8026,9.795,33.26]
[1672552246158,22.7283,9.8026,9.7951,345.8]
[1672552246382,22.7283,9.8026,9.7952,33.26]
[1672552246602,22.7283,9.8026,9.7953,345.8]
[1672552246818,22.7283,9.8026,9.7955,40.0]
[1672552247034,22.7283,9.8026,9.7957,40.0]
[1672552247219,22.7283,9.8026,9.7958,16.26]
[1672552247434,22.7283,9.8026,9.796,40.0]
[1672552247666,22.7283,9.8026,9.7962,40.0]
[1672552247856,22.7283,9.8026,9.7962,345.8]
[1672552248191,22.7283,9.8026,9.7964,345.8]
[1672552248383,22.7283,9.8026,9.7965,17.0]
[1672552248590,22.7283,9.8026,9.7966,345.8]
[1672552248800,22.7283,9.8026,9.7967,40.0]
[1672552249014,22.5319,9.8036,9.7967,40.0]
[1672552251216,22.5319,9.8036,9.7969,40.0]
[1672552251754,22.5319,9.8036,9.7968,305.8]
[1672552252166,22.5319,9.8036,9.7962,305.8]
[1672552253220,22.5319,9.8036,9.7945,40.0]
[1672552253526,40.0,9.8035,9.7944,345.8]
[1672552253855,22.5319,9.8036,9.7944,345.8]
[1672552254062,116.59,9.8035,9.794,116.7796]
[1672552256590,116.59,9.8035,9.7941,305.8]
[1672552258695,116.59,9.8035,9.7942,40.0]
[1672552258890,40.0,9.8034,9.7942,40.0]
[1672552259101,76.59,9.8033,9.7942,40.0]
[1672552259330,40.0,9.8032,9.7941,305.8]
[1672552259527,40.0,9.803,9.7941,305.8]
[1672552259737,76.59,9.8029,9.7941,305.8]
[1672552259956,40.0,9.8028,9.7941,305.8]
[1672552260157,40.0,9.8026,9.7941,305.8]
[1672552260377,76.6,9.8025,9.7941,305.8]
[1672552261633,40.0,9.8026,9.7941,305.8]
[1672552261851,40.0,9.8024,9.7941,305.8]
[1672552262161,40.0,9.8022,9.7941,305.8]
[1672552262374,76.6,9.8021,9.7941,305.8]
[1672552262584,76.59,9.8033,9.7941,305.8]
[1672552262784,40.0,9.8032,9.7942,40.0]
[1672552263113,76.59,9.8031,9.7941,305.8]
[1672552263324,40.0,9.803,9.7941,305.8]
[1672552263531,76.59,9.8029,9.7941,305.8]
[1672552263752,40.0,9.8028,9.7941,305.8]
[1672552263938,40.0,9.8026,9.7941,305.8]
[1672552264266,76.6,9.8025,9.7942,40.0]
[1672552264483,76.59,9.8035,9.7941,305.8]
[1672552265002,40.0,9.8034,9.7942,40.0]
[1672552265213,76.59,9.8033,9.7942,40.0]
[1672552265620,40.0,9.8032,9.7941,305.8]
[1672552265830,76.59,9.8031,9.7942,40.0]
[1672552266150,76.59,9.8035,9.7942,40.0]
[1672552267408,76.59,9.8035,9.7947,17.0]
[1672552267614,76.59,9.8035,9.7948,40.0]
[1672552267827,76.59,9.8035,9.7948,345.8]
[1672552268043,76.59,9.804,9.795,40.0]
[1672552268251,40.0,9.8062,9.7951,17.0]
[1672552268460,76.57,9.8061,9.7951,17.0]
[1672552268780,40.0,9.806,9.7953,40.0]
[1672552268996,40.0,9.8058,9.7954,17.0]
[1672552269197,76.57,9.8057,9.7955,16.13]
[1672552269413,76.57,9.8057,9.7957,40.0]
[1672552269618,40.0,9.8056,9.7959,40.0]
[1672552269824,40.0,9.8062,9.7958,322.8]
[1672552269825,76.57,9.8055,9.7958,305.8]
[1672552270034,687.29198246,9.818,9.7958,305.8]
[1672552270035,40.0,9.807,9.796,40.0]
[1672552270250,40.0,9.8068,9.7961,16.13]
[1672552270459,40.0,9.8068,9.7963,40.0]
[1672552270460,76.56,9.8067,9.7963,40.0]
[1672552270669,40.0,9.8066,9.7964,16.13]
[1672552270982,40.0,9.8064,9.7964,16.13]
[1672552271211,76.57,9.8063,9.7964,16.13]
[1672552271530,40.0,9.8066,9.7964,16.13]
[1672552271720,40.0,9.8064,9.7964,16.13]
[1672552271924,76.57,9.8063,9.7964,16.13]
[1672552272145,40.0,9.8062,9.7964,16.13]
[1672552272372,76.57,9.8061,9.7964,16.13]
[1672552272681,40.0,9.806,9.7966,40.0]
[1672552272886,76.57,9.8059,9.7967,17.0]
[1672552273302,76.57,9.8061,9.7967,17.0]
[1672552273514,40.0,9.8064,9.7967,17.0]
[1672552273515,76.57,9.8063,9.7967,17.0]
[1672552273835,40.0,9.8062,9.7967,17.0]
[1672552274047,40.0,9.8066,9.7967,17.0]
[1672552274048,76.57,9.8061,9.7967,17.0]
[1672552274258,76.56,9.8069,9.797,40.0]
[1672552274475,40.0,9.8068,9.7971,17.0]
[1672552274677,40.0,9.8066,9.7972,40.0]
[1672552274893,40.0,9.8064,9.7973,17.0]
[1672552275084,76.57,9.8063,9.7973,17.0]
[1672552275297,40.0,9.8062,9.7973,17.0]
[1672552275502,76.57,9.8061,9.7973,17.0]
[1672552275826,76.57,9.8061,9.7974,40.0]
[1672552276145,76.56,9.8074,9.7976,40.0]
[1672552276357,40.0,9.8179,9.7978,40.0]
[1672552276358,40.0,9.8163,9.7978,40.0]
[1672552276559,190.0885,9.8162,9.7979,16.06]
[1672552276770,60.0,9.8161,9.7981,305.8]
[1672552276986,60.0,9.8161,9.798,60.0]
[1672552276987,40.0,9.8159,9.7984,40.0]
[1672552277330,40.0,9.8157,9.7987,40.0]
[1672552277625,40.0,9.8155,9.7989,40.0]
[1672552277816,40.0,9.8153,9.7992,40.0]
[1672552278144,76.5,9.8152,9.7994,305.8]
[1672552278360,76.5,9.8152,9.7996,305.8]
[1672552278361,40.0,9.8151,9.7996,305.8]
[1672552278552,76.5,9.815,9.7998,40.0]
[1672552278762,76.5,9.8151,9.7999,32.81]
[1672552278977,76.5,9.8151,9.8,345.8]
[1672552278978,40.0,9.8148,9.8,345.8]
[1672552279181,40.0,9.8146,9.8002,40.0]
[1672552279389,76.5,9.8145,9.8003,32.81]
[1672552279619,40.0,9.8144,9.8004,345.8]
[1672552279828,40.0,9.8142,9.8006,40.0]
[1672552280022,76.51,9.8141,9.8007,15.81]
[1672552280359,40.0,9.814,9.8009,40.0]
[1672552280549,76.51,9.8139,9.8009,40.0]
[1672552280760,47.2918,9.8139,9.8011,345.8]
[1672552280971,96.51,9.8138,9.8013,305.8]
[1672552281404,47.2918,9.8137,9.8015,305.8]
[1672552281618,76.51,9.8136,9.8017,40.0]
[1672552282039,22.8578,9.8135,9.8018,46.3987]
[1672552282249,76.51,9.8134,9.8019,40.0]
[1672552282562,76.51,9.8134,9.8021,40.0]
[1672552282757,22.8578,9.8133,9.8023,40.0]
[1672552283093,76.51,9.8132,9.8025,40.0]
[1672552283291,99.3678,9.8132,9.8026,15.77]
[1672552283511,99.3678,9.8132,9.8028,40.0]
[1672552283701,99.3678,9.8132,9.803,40.0]
[1672552283912,22.8578,9.8131,9.8031,17.0]
[1672552284239,76.52,9.813,9.8033,40.0]
[1672552284438,76.52,9.813,9.8034,17.0]
[1672552284986,76.52,9.813,9.8036,305.8]
[1672552285171,22.8578,9.8131,9.8037,32.63]
[1672552285383,22.8578,9.8131,9.8038,345.8]
[1672552285599,22.8578,9.8131,9.8039,15.63]
[1672552285807,22.8578,9.8131,9.8039,39.1654]
[1672552286017,22.8578,9.8131,9.804,40.0]
[1672552286344,22.8578,9.8131,9.8041,15.63]
[1672552286553,22.8578,9.8131,9.8042,345.8]
[1672552286959,22.8578,9.8131,9.8043,15.54]
[1672552287165,22.8578,9.8131,9.8044,345.8]
[1672552287394,22.8578,9.8131,9.8046,40.0]
[1672552287603,22.8578,9.8131,9.8047,15.54]
[1672552288233,22.8578,9.8131,9.8048,305.8]
[1672552288447,22.8578,9.8131,9.805,305.8]
[1672552288654,40.0,9.813,9.8051,15.54]
[1672552288867,116.52,9.813,9.805,305.8]
[1672552289483,116.52,9.813,9.8039,23.5354]
[1672552291368,76.52,9.813,9.8039,23.5354]
[1672552291579,40.0,9.8129,9.8039,23.5354]
[1672552291792,40.0,9.8127,9.8039,23.5354]
[1672552292019,76.52,9.8126,9.8039,23.5354]
[1672552292222,40.0,9.8125,9.8039,23.5354]
[1672552292433,40.0,9.8123,9.8039,23.5354]
[1672552292638,76.52,9.8122,9.8041,40.0]
[1672552292856,76.52,9.813,9.8041,40.0]
[1672552294105,40.0,9.8129,9.804,23.294]
[1672552294326,76.52,9.8128,9.804,23.294]
[1672552294521,76.52,9.813,9.8041,40.0]
[1672552294731,76.51,9.8136,9.8041,40.0]
[1672552294942,76.52,9.813,9.8043,40.0]
[1672552296017,99.7448,9.8137,9.8044,17.0]
[1672552296430,23.2348,9.8137,9.8046,305.8]
[1672552296765,23.2348,9.8137,9.8048,40.0]
[1672552296960,23.2348,9.8137,9.8049,17.0]
[1672552297167,23.2348,9.8137,9.8049,32.80730786]
[1672552297383,23.2348,9.8137,9.805,361.41]
[1672552297700,23.2348,9.8137,9.8052,345.8]
[1672552297907,23.2348,9.8137,9.8053,32.61]
[1672552298118,23.2348,9.8137,9.8054,345.8]
[1672552298326,76.49,9.816,9.8056,40.0]
[1672552298536,40.0,9.8297,9.8059,40.0]
[1672552298537,76.46,9.8197,9.8059,40.0]
[1672552298747,40.0,9.8229,9.8061,305.8]
[1672552298957,40.0,9.8227,9.8063,345.8]
[1672552299280,76.44,9.8226,9.8065,40.0]
[1672552299480,99.964,9.8226,9.8066,32.48]
[1672552299690,40.0,9.8225,9.8067,345.8]
[1672552299900,76.44,9.8224,9.8068,32.48]
[1672552300111,40.0,9.8223,9.807,40.0]
[1672552300436,40.0,9.8221,9.8072,40.0]
[1672552300768,40.0,9.8219,9.8074,40.0]
[1672552301070,40.0,9.8217,9.8076,40.0]
[1672552301281,76.45,9.8216,9.8077,15.48]
[1672552301473,40.0,9.8215,9.8079,40.0]
[1672552301683,40.0,9.8213,9.808,17.0]
[1672552302015,76.45,9.8212,9.8082,40.0]
[1672552302211,40.0,9.8211,9.8083,17.0]
[1672552302421,76.45,9.821,9.8085,40.0]
[1672552302644,76.45,9.821,9.8086,17.0]
[1672552302850,76.45,9.8212,9.8088,40.0]
[1672552303071,40.0,9.8214,9.8088,40.0]
[1672552303269,40.0,9.8214,9.8089,85.61982723]
[1672552303270,76.45,9.8213,9.8089,85.61982723]
[1672552303574,40.0,9.8212,9.8091,40.0]
[1672552303795,76.45,9.8211,9.8091,40.0]
[1672552304020,40.0,9.821,9.8093,40.0]
[1672552304215,40.0,9.8208,9.8093,40.0]
[1672552304428,40.0,9.8212,9.8096,40.0]
[1672552304429,76.46,9.8207,9.8096,40.0]
[1672552304639,76.45,9.8211,9.8096,40.0]
[1672552304849,40.0,9.821,9.8099,40.0]
[1672552305069,76.45,9.8209,9.8099,40.0]
[1672552305280,76.45,9.8209,9.8102,40.0]
[1672552305473,60.0,9.8208,9.8101,305.8]
[1672552305797,76.46,9.8207,9.8102,115.3496]
[1672552305988,40.0,9.8206,9.8104,305.8]
[1672552306325,76.46,9.8205,9.8104,305.8]
[1672552306550,40.0,9.8204,9.8104,305.8]
[1672552306749,40.0,9.8202,9.8104,305.8]
[1672552307066,40.0,9.82,9.8036,40.0]
[1672552307367,40.0,9.8198,9.8038,40.0]
[1672552307580,40.0,9.8198,9.8039,15.49]
[1672552307581,76.46,9.8197,9.8039,15.49]
[1672552307789,40.0,9.8196,9.8039,15.49]
[1672552307988,40.0,9.8194,9.8037,305.8]
[1672552308199,76.47,9.8193,9.8038,40.0]
[1672552308419,60.0,9.8192,9.804,40.0]
[1672552308636,40.0,9.819,9.804,40.0]
[1672552308833,40.0,9.8188,9.804,40.0]
[1672552309042,76.47,9.8187,9.804,15.80730786]
[1672552309247,40.0,9.8185,9.8039,330.0175]
[1672552309577,40.0,9.8183,9.8039,24.2175]
[1672552309787,76.48,9.8182,9.8039,24.2175]
[1672552310000,40.0,9.818,9.8039,24.2175]
[1672552310345,40.0,9.8178,9.8039,24.2175]
[1672552310556,96.48,9.8177,9.804,24.2175]
[1672552310957,91.2949318,9.8176,9.804,24.2175]
[1672552311167,96.48,9.8175,9.8041,23.4082]
[1672552311379,40.0,9.8174,9.8041,23.4082]
[1672552311696,40.0,9.8172,9.8041,23.4082]
[1672552311909,40.0,9.817,9.8041,23.4082]
[1672552312224,40.0,9.8168,9.8041,23.4082]
[1672552312433,40.0,9.8168,9.7948,40.0]
[1672552312434,40.0,9.8166,9.8042,23.4082]
[1672552312644,96.49,9.8165,9.8043,23.4082]
[1672552312969,40.0,9.8164,9.8043,23.4082]
[1672552313177,40.0,9.8162,9.8043,23.4082]
[1672552313385,40.0,9.816,9.8043,23.4082]
[1672552313593,76.49,9.8159,9.8043,23.4082]
[1672552313804,40.0,9.8158,9.8043,23.4082]
[1672552314126,40.0,9.8156,9.8043,23.4082]
[1672552314320,76.5,9.8155,9.8043,23.4082]
[1672552314531,40.0,9.8153,9.8044,23.5196]
[1672552314744,40.0,9.8151,9.8045,23.5196]
[1672552314948,96.5,9.815,9.8045,23.5196]
[1672552315158,40.0,9.8149,9.8045,23.5196]
[1672552315377,40.0,9.8149,9.7959,15.91]
[1672552315378,40.0,9.8147,9.7959,15.91]
[1672552315590,40.0,9.8147,9.7945,23.5196]
[1672552315591,76.5,9.8146,9.7945,23.5196]
[1672552315787,40.0,9.8145,9.7946,23.5196]
[1672552315998,40.0,9.8143,9.7946,23.5196]
[1672552316208,96.51,9.8142,9.7946,23.5196]
[1672552316417,40.0,9.8141,9.7946,23.5196]
[1672552316651,40.0,9.8139,9.7947,23.5196]
[1672552316962,40.0,9.8139,9.7948,23.5196]
[1672552316963,40.0,9.8137,9.7948,23.5196]
[1672552317164,40.0,9.8135,9.7948,23.5196]
[1672552317363,40.0,9.8133,9.7948,23.5196]
[1672552317575,76.51,9.8132,9.7948,23.5196]
[1672552317804,40.0,9.813,9.7948,23.5196]
[1672552318003,40.0,9.8128,9.7948,23.5196]
[1672552318321,40.0,9.8126,9.7948,23.5196]
[1672552318532,96.52,9.8125,9.7949,24.7545]
[1672552318726,40.0,9.8124,9.7949,24.7545]
[1672552318943,40.0,9.8122,9.7949,24.7545]
[1672552319155,96.52,9.8121,9.7949,24.7545]
[1672552319358,40.0,9.812,9.7949,24.7545]
[1672552319584,40.0,9.8118,9.7949,24.7545]
[1672552319796,76.53,9.8117,9.7949,24.7545]
[1672552320003,60.0,9.8116,9.7949,24.7545]
[1672552320211,40.0,9.8114,9.7949,24.7545]
[1672552320421,96.53,9.8113,9.7949,24.7545]
[1672552320748,40.0,9.8112,9.795,23.2623]
[1672552320958,40.0,9.811,9.7951,23.2623]
[1672552321165,40.0,9.8108,9.7951,23.2623]
[1672552321369,96.53,9.8107,9.7951,23.2623]
[1672552321586,111.67981899,9.8107,9.7951,23.2623]
[1672552321809,157.9945,9.8106,9.7951,23.2623]
[1672552322111,40.0,9.8104,9.7951,23.2623]
[1672552322321,40.0,9.8102,9.7951,23.2623]
[1672552322529,96.54,9.8101,9.7951,23.2623]
[1672552322848,40.0,9.81,9.7951,23.2623]
[1672552323171,40.0,9.8098,9.7952,23.2623]
[1672552323391,40.0,9.8096,9.7952,23.2623]
[1672552323587,76.54,9.8095,9.7952,23.2623]
[1672552323806,60.0,9.8094,9.7952,23.2623]
[1672552324003,40.0,9.8092,9.7952,23.2623]
[1672552324213,40.0,9.809,9.7952,23.2623]
[1672552324420,96.55,9.8089,9.7952,23.2623]
[1672552324644,96.55,9.8089,9.7949,305.8]
[1672552324645,40.0,9.8088,9.7953,22.6419]
[1672552324841,40.0,9.8086,9.7953,22.6419]
[1672552325056,40.0,9.8084,9.7953,22.6419]
[1672552325275,76.55,9.8083,9.7953,22.6419]
[1672552325490,60.0,9.8082,9.7953,22.6419]
[1672552325706,40.0,9.808,9.7953,22.6419]
[1672552325895,40.0,9.8078,9.7953,22.6419]
[1672552326109,96.56,9.8077,9.7953,22.6419]
[1672552326325,40.0,9.8076,9.7953,22.6419]
[1672552326522,40.0,9.8074,9.7953,22.6419]
[1672552326734,96.56,9.8073,9.7954,22.6419]
[1672552326948,40.0,9.8072,9.7954,22.6419]
[1672552327165,40.0,9.807,9.7954,22.6419]
[1672552327368,76.56,9.8069,9.7954,22.6419]
[1672552327584,40.0,9.8068,9.7954,22.6419]
[1672552327801,40.0,9.8066,9.7954,22.6419]
[1672552328010,40.0,9.8064,9.7954,22.6419]
[1672552328224,76.57,9.8063,9.7954,22.6419]
[1672552328437,60.0,9.8062,9.7954,22.6419]
[1672552328649,40.0,9.806,9.7955,24.8465]
[1672552328836,96.57,9.8059,9.7955,24.8465]
[1672552329046,40.0,9.8058,9.7955,24.8465]
[1672552329256,40.0,9.8056,9.7955,24.8465]
[1672552329486,40.0,9.8054,9.7955,24.8465]
[1672552329782,40.0,9.8052,9.7955,24.8465]
[1672552330010,96.58,9.8051,9.7955,24.8465]
[1672552330205,40.0,9.805,9.7955,24.8465]
[1672552330415,96.58,9.8049,9.7955,24.8465]
[1672552330621,40.0,9.8048,9.7955,24.8465]
[1672552330838,40.0,9.8046,9.7955,24.8465]
[1672552331160,40.0,9.8044,9.7955,24.8465]
[1672552331374,40.0,9.8042,9.7955,24.8465]
[1672552331563,96.58,9.8041,9.7955,24.8465]
[1672552331775,40.0,9.804,9.7955,24.8465]
[1672552331985,40.0,9.8038,9.7955,24.8465]
[1672552332207,20.0,9.8039,9.7956,40.0]
[1672552332419,20.0,9.8048,9.7955,24.8465]
[1672552332613,40.0,9.8046,9.7956,22.6593]
[1672552332834,96.58,9.8045,9.7956,22.6593]
[1672552333257,96.58,9.8045,9.7957,23.8853]
[1672552334221,40.0,9.8044,9.7957,23.8853]
[1672552334424,96.58,9.8043,9.7957,23.8853]
[1672552334642,20.0,9.8043,9.796,40.0]
[1672552335190,20.0,9.8045,9.7961,16.05]
[1672552335358,20.0,9.8051,9.7961,321.85]
[1672552335574,20.0,9.8051,9.7962,40.0]
[1672552336000,76.58,9.805,9.7962,40.0]
[1672552336200,20.0,9.8049,9.7962,40.0]
[1672552336412,20.0,9.8049,9.7964,345.8]
[1672552336837,20.0,9.8051,9.7964,345.8]
[1672552337052,76.57,9.8063,9.7964,424.57316056]
[1672552337268,76.55,9.8081,9.7967,40.0]
[1672552337477,40.0,9.8183,9.797,40.0]
[1672552337795,40.0,9.8183,9.7973,40.0]
[1672552337796,40.0,9.8181,9.7973,40.0]
[1672552337989,40.0,9.8179,9.7976,40.0]
[1672552338205,76.48,9.8178,9.7977,35.82]
[1672552338519,40.0,9.8177,9.7979,40.0]
[1672552338728,40.0,9.8175,9.7981,305.8]
[1672552338936,40.0,9.8173,9.7983,345.8]
[1672552339147,76.48,9.8172,9.7984,35.82]
[1672552339458,40.0,9.817,9.7986,40.0]
[1672552339679,96.49,9.8169,9.7987,342.8]
[1672552339885,40.0,9.8168,9.7988,40.0]
[1672552340095,40.0,9.8166,9.799,40.0]
[1672552340309,40.0,9.8166,9.7991,20.0]
[1672552340310,96.49,9.8165,9.7991,20.0]
[1672552340520,40.0,9.8164,9.7993,40.0]
[1672552340720,96.49,9.8163,9.7994,20.0]
[1672552340932,40.0,9.8162,9.7994,20.0]
[1672552341147,40.0,9.816,9.7997,40.0]
[1672552341363,40.0,9.8158,9.7997,40.0]
[1672552341689,40.0,9.8156,9.7997,40.0]
[1672552341881,40.0,9.8154,9.7999,305.8]
[1672552342095,96.5,9.8153,9.7999,305.8]
[1672552342303,40.0,9.8152,9.7999,305.8]
[1672552342621,40.0,9.815,9.8001,305.8]
[1672552342830,40.0,9.8148,9.8001,305.8]
[1672552343045,40.0,9.8146,9.8003,305.8]
[1672552343262,96.5,9.8145,9.8003,305.8]
[1672552343474,40.0,9.8144,9.8003,305.8]
[1672552343672,40.0,9.8142,9.8005,305.8]
[1672552343874,40.0,9.814,9.8005,305.8]
[1672552344081,76.51,9.8139,9.8005,305.8]
[1672552344291,76.51,9.8139,9.8,24.909]
[1672552344292,40.0,9.8138,9.8007,305.8]
[1672552344525,40.0,9.8136,9.8007,305.8]
[1672552344738,76.51,9.8135,9.8007,305.8]
[1672552345051,40.0,9.8134,9.8009,305.8]
[1672552345279,40.0,9.8132,9.8009,305.8]
[1672552345580,40.0,9.813,9.8012,40.0]
[1672552345791,40.0,9.8128,9.8015,40.0]
[1672552345987,76.52,9.8127,9.8015,40.0]
[1672552346201,40.0,9.8126,9.8015,40.0]
[1672552346407,40.0,9.8124,9.8017,305.8]
[1672552346730,40.0,9.8122,9.8017,305.8]
[1672552346942,76.52,9.8121,9.8019,305.8]
[1672552347153,40.0,9.812,9.8019,305.8]
[1672552347350,40.0,9.8118,9.8019,305.8]
[1672552347557,76.53,9.8117,9.8021,305.8]
[1672552347777,40.0,9.8116,9.8022,48.1109]
[1672552347986,40.0,9.8114,9.8022,48.1109]
[1672552348190,40.0,9.8112,9.8022,48.1109]
[1672552348396,76.53,9.8111,9.8024,305.8]
[1672552348622,40.0,9.811,9.8025,133.5291]
[1672552348820,40.0,9.8108,9.8025,133.5291]
[1672552349030,40.0,9.8106,9.8025,133.5291]
[1672552349246,76.53,9.8105,9.8026,134.0999]
[1672552349456,40.0,9.8104,9.8026,134.0999]
[1672552349676,40.0,9.8102,9.8026,134.0999]
[1672552349881,76.54,9.8101,9.8027,23.8221]
[1672552350097,40.0,9.81,9.8027,23.8221]
[1672552350307,76.54,9.8099,9.8027,23.8221]
[1672552350519,40.0,9.8098,9.8028,23.8221]
[1672552350722,40.0,9.8096,9.8028,23.8221]
[1672552350929,40.0,9.8094,9.8028,23.8221]
[1672552351144,76.54,9.8093,9.8028,23.8221]
[1672552351342,40.0,9.8092,9.8028,23.8221]
[1672552351553,40.0,9.809,9.8028,23.8221]
[1672552351782,76.55,9.8089,9.8028,23.8221]
[1672552351978,40.0,9.8088,9.8028,23.8221]
[1672552352191,40.0,9.8086,9.8028,23.8221]
[1672552352519,40.0,9.8084,9.8028,23.8221]
[1672552352832,40.0,9.8082,9.8028,23.8221]
[1672552353039,76.55,9.8081,9.8028,23.8221]
[1672552353234,40.0,9.808,9.8028,23.8221]
[1672552353445,40.0,9.8078,9.8028,23.8221]
[1672552353660,40.0,9.8076,9.8028,23.8221]
[1672552354201,40.0,9.8074,9.8028,23.8221]
[1672552354396,40.0,9.8072,9.8028,23.8221]
[1672552354607,76.56,9.8071,9.8028,23.8221]
[1672552354808,40.0,9.807,9.8028,23.8221]
[1672552355016,40.0,9.8068,9.8028,23.8221]
[1672552357155,40.0,9.8066,9.8028,23.8221]
[1672552361870,76.56,9.8067,9.8028,23.8221]
[1672552362081,40.0,9.8066,9.8028,23.8221]
[1672552362612,453.88442397,9.8291,9.8028,23.8221]
[1672552362821,74.6871,9.817,9.8028,23.8221]
[1672552363236,51.2949318,9.8171,9.8028,23.8221]
[1672552363237,76.55,9.8085,9.8028,23.8221]